[Event "*** SCC Grand Prix: Titled Tuesday Blitz"]
[Site "Chess.com"]
[Date "2020.06.23"]
[Round "5"]
[White "ajian"]
[Black "FMJoseHerrera"]
[Result "0-1"]
[WhiteElo "2401"]
[BlackElo "2570"]
[TimeControl "180+1"]
[EndTime "10:55:55 PDT"]
[Termination "FMJoseHerrera won on time"]

1. d4 {[%clk 0:03:00.9]} 1... Nf6 {[%clk 0:02:58.1]} 2. c4 {[%clk 0:03:01.2]}
2... c5 {[%clk 0:02:57.4]} 3. d5 {[%clk 0:03:01.3]} 3... b5 {[%clk 0:02:57.4]}
4. cxb5 {[%clk 0:03:02.2]} 4... a6 {[%clk 0:02:57.4]} 5. bxa6 {[%clk 0:03:03.1]}
5... g6 {[%clk 0:02:57.3]} 6. Nc3 {[%clk 0:03:03.3]} 6... Bg7 {[%clk 0:02:57.4]}
7. g3 {[%clk 0:03:03.2]} 7... O-O {[%clk 0:02:56.4]} 8. Bg2 {[%clk 0:03:03.6]}
8... d6 {[%clk 0:02:56.7]} 9. Nf3 {[%clk 0:03:03.9]} 9... Nbd7 {[%clk
0:02:56.8]} 10. O-O {[%clk 0:03:01.6]} 10... Nb6 {[%clk 0:02:56.9]} 11. Rb1
{[%clk 0:02:58.1]} 11... Bf5 {[%clk 0:02:56.6]} 12. Ra1 {[%clk 0:02:52.9]} 12...
Rxa6 {[%clk 0:02:56.2]} 13. Nh4 {[%clk 0:02:49.8]} 13... Bg4 {[%clk 0:02:55.1]}
14. h3 {[%clk 0:02:47.2]} 14... Bd7 {[%clk 0:02:54.4]} 15. Qc2 {[%clk
0:02:45.6]} 15... Qa8 {[%clk 0:02:51.9]} 16. Rd1 {[%clk 0:02:41]} 16... Rb8
{[%clk 0:02:48.4]} 17. b3 {[%clk 0:02:36.8]} 17... c4 {[%clk 0:02:36.8]} 18. Bb2
{[%clk 0:02:19.5]} 18... cxb3 {[%clk 0:02:29.7]} 19. axb3 {[%clk 0:02:20.4]}
19... Rxa1 {[%clk 0:02:17.6]} 20. Rxa1 {[%clk 0:02:21.3]} 20... Qb7 {[%clk
0:02:18.2]} 21. e4 {[%clk 0:01:23.8]} 21... Qc8 {[%clk 0:01:44.5]} 22. Rc1
{[%clk 0:01:08.7]} 22... Bxh3 {[%clk 0:01:40.9]} 23. Qd3 {[%clk 0:00:59]} 23...
Bxg2 {[%clk 0:01:38.2]} 24. Kxg2 {[%clk 0:00:59.9]} 24... Nbd7 {[%clk 0:01:37]}
25. Ne2 {[%clk 0:00:56.9]} 25... Qb7 {[%clk 0:01:34.1]} 26. Nd4 {[%clk
0:00:36.2]} 26... Nc5 {[%clk 0:01:31.4]} 27. Qe3 {[%clk 0:00:31.4]} 27... Nfxe4
{[%clk 0:01:24.3]} 28. f3 {[%clk 0:00:23.6]} 28... Nxb3 {[%clk 0:01:00.3]} 29.
Qxe4 {[%clk 0:00:13.9]} 29... Nc5 {[%clk 0:00:47.8]} 30. Qe2 {[%clk 0:00:01.2]}
30... Qxb2 {[%clk 0:00:47.3]} 0-1

[Event "*** SCC Grand Prix: Titled Tuesday Blitz"]
[Site "Chess.com"]
[Date "2020.06.23"]
[Round "5"]
[White "tan275"]
[Black "CyberneticLion"]
[Result "0-1"]
[WhiteElo "2258"]
[BlackElo "2452"]
[TimeControl "180+1"]
[EndTime "10:55:56 PDT"]
[Termination "CyberneticLion won by resignation"]

1. d4 {[%clk 0:03:00.3]} 1... d5 {[%clk 0:02:59.3]} 2. c4 {[%clk 0:03:00.6]}
2... e6 {[%clk 0:02:59]} 3. Nf3 {[%clk 0:02:59.1]} 3... Nf6 {[%clk 0:02:58.4]}
4. Nc3 {[%clk 0:02:58.5]} 4... c6 {[%clk 0:02:57.4]} 5. e3 {[%clk 0:02:54.3]}
5... Nbd7 {[%clk 0:02:56.8]} 6. Qc2 {[%clk 0:02:54.5]} 6... Bd6 {[%clk
0:02:55.1]} 7. Bd3 {[%clk 0:02:54.1]} 7... dxc4 {[%clk 0:02:55]} 8. Bxc4 {[%clk
0:02:52.5]} 8... b5 {[%clk 0:02:55.9]} 9. Be2 {[%clk 0:02:52.3]} 9... O-O {[%clk
0:02:54.9]} 10. O-O {[%clk 0:02:51.6]} 10... a6 {[%clk 0:02:52.6]} 11. Rd1
{[%clk 0:02:48.3]} 11... Bb7 {[%clk 0:02:52.1]} 12. h3 {[%clk 0:02:44.5]} 12...
Qe7 {[%clk 0:02:44.6]} 13. e4 {[%clk 0:02:35.8]} 13... e5 {[%clk 0:02:44.4]} 14.
dxe5 {[%clk 0:02:32.2]} 14... Nxe5 {[%clk 0:02:45.3]} 15. Bg5 {[%clk 0:02:29.2]}
15... Nxf3+ {[%clk 0:02:43.4]} 16. Bxf3 {[%clk 0:02:27.8]} 16... Qe5 {[%clk
0:02:44.3]} 17. Be3 {[%clk 0:02:10.4]} 17... Qh2+ {[%clk 0:02:42.2]} 18. Kf1
{[%clk 0:02:09.7]} 18... Rad8 {[%clk 0:02:24.3]} 19. Ke2 {[%clk 0:01:55.9]}
19... a5 {[%clk 0:02:19.3]} 20. g3 {[%clk 0:01:12.9]} 20... Qxh3 {[%clk
0:02:16.8]} 21. Rh1 {[%clk 0:01:12.3]} 21... Qe6 {[%clk 0:02:15.2]} 22. Kf1
{[%clk 0:01:08.6]} 22... Ba6 {[%clk 0:02:13.1]} 23. Kg2 {[%clk 0:01:07.7]} 23...
Rfe8 {[%clk 0:02:06]} 24. Bg5 {[%clk 0:01:03.8]} 24... h6 {[%clk 0:02:04.5]} 25.
Bxf6 {[%clk 0:01:03]} 25... Qxf6 {[%clk 0:02:05.4]} 26. Rad1 {[%clk 0:01:00.9]}
26... b4 {[%clk 0:01:59.4]} 27. Ne2 {[%clk 0:00:59.4]} 27... Be5 {[%clk
0:01:59.5]} 28. Nc1 {[%clk 0:00:56.4]} 28... Bxb2 {[%clk 0:01:56.8]} 29. Nd3
{[%clk 0:00:55.1]} 29... Bc3 {[%clk 0:01:51.4]} 30. Nc5 {[%clk 0:00:53.1]} 30...
Bc4 {[%clk 0:01:46.3]} 31. Na4 {[%clk 0:00:48.5]} 31... Rxd1 {[%clk 0:01:35.9]}
32. Rxd1 {[%clk 0:00:46.6]} 32... Rd8 {[%clk 0:01:36.8]} 33. Rxd8+ {[%clk
0:00:44.5]} 33... Qxd8 {[%clk 0:01:37.7]} 34. Nxc3 {[%clk 0:00:43.9]} 34... bxc3
{[%clk 0:01:34.1]} 35. Qxc3 {[%clk 0:00:43.8]} 35... Bxa2 {[%clk 0:01:34.4]} 36.
Qxc6 {[%clk 0:00:42.6]} 36... Bb3 {[%clk 0:01:34.4]} 37. e5 {[%clk 0:00:36.6]}
37... a4 {[%clk 0:01:33.4]} 38. Qc5 {[%clk 0:00:36]} 38... Qf8 {[%clk
0:01:33.2]} 39. Qc3 {[%clk 0:00:31.6]} 39... Be6 {[%clk 0:01:31.7]} 40. Qa5
{[%clk 0:00:17.8]} 40... a3 {[%clk 0:01:31]} 41. Bd5 {[%clk 0:00:15.8]} 41...
Bxd5+ {[%clk 0:01:24.1]} 42. Qxd5 {[%clk 0:00:16.7]} 42... Qb8 {[%clk
0:01:24.8]} 43. e6 {[%clk 0:00:16.3]} 43... fxe6 {[%clk 0:01:21.6]} 44. Qxe6+
{[%clk 0:00:16.2]} 44... Kh8 {[%clk 0:01:22.5]} 45. Qf7 {[%clk 0:00:15.7]} 45...
Qa8+ {[%clk 0:01:21.7]} 46. Kh2 {[%clk 0:00:15]} 46... a2 {[%clk 0:01:22]} 0-1

[Event "*** SCC Grand Prix: Titled Tuesday Blitz"]
[Site "Chess.com"]
[Date "2020.06.23"]
[Round "5"]
[White "Belka1989"]
[Black "ExtremeLearner"]
[Result "0-1"]
[WhiteElo "2336"]
[BlackElo "2196"]
[TimeControl "180+1"]
[EndTime "10:56:01 PDT"]
[Termination "ExtremeLearner won by resignation"]

1. d4 {[%clk 0:03:00.9]} 1... d5 {[%clk 0:03:00.2]} 2. Nf3 {[%clk 0:02:41.5]}
2... Nf6 {[%clk 0:02:59.2]} 3. Bf4 {[%clk 0:02:40.1]} 3... c6 {[%clk 0:02:57.9]}
4. e3 {[%clk 0:02:39.9]} 4... Bg4 {[%clk 0:02:57.1]} 5. c4 {[%clk 0:02:39.6]}
5... e6 {[%clk 0:02:55.8]} 6. Qb3 {[%clk 0:02:39.6]} 6... Qb6 {[%clk 0:02:54.5]}
7. c5 {[%clk 0:02:39.6]} 7... Qxb3 {[%clk 0:02:54.6]} 8. axb3 {[%clk 0:02:40.5]}
8... Nbd7 {[%clk 0:02:54.6]} 9. Nbd2 {[%clk 0:02:22]} 9... h6 {[%clk 0:02:44.3]}
10. h3 {[%clk 0:02:20.4]} 10... Bf5 {[%clk 0:02:42.1]} 11. b4 {[%clk 0:02:18.3]}
11... g5 {[%clk 0:02:37]} 12. Bh2 {[%clk 0:02:15.2]} 12... a6 {[%clk 0:02:32.6]}
13. Nb3 {[%clk 0:02:13.9]} 13... Be7 {[%clk 0:02:20]} 14. Na5 {[%clk 0:02:12]}
14... Ra7 {[%clk 0:02:17.3]} 15. Be2 {[%clk 0:02:01.8]} 15... Ne4 {[%clk
0:02:01.3]} 16. O-O {[%clk 0:01:56.6]} 16... h5 {[%clk 0:01:51.3]} 17. Ne5
{[%clk 0:01:34.2]} 17... f6 {[%clk 0:01:44.9]} 18. Nxd7 {[%clk 0:01:28]} 18...
Kxd7 {[%clk 0:01:45.8]} 19. f3 {[%clk 0:01:28.1]} 19... Nd2 {[%clk 0:01:32.9]}
20. Rfd1 {[%clk 0:01:26.4]} 20... Nb3 {[%clk 0:01:23.9]} 21. Nxb3 {[%clk
0:01:24.2]} 21... Bc2 {[%clk 0:01:23.7]} 22. Na5 {[%clk 0:01:24.1]} 22... Bxd1
{[%clk 0:01:23.5]} 23. Bxd1 {[%clk 0:01:17.1]} 23... Bd8 {[%clk 0:01:21.1]} 24.
Be2 {[%clk 0:01:16.1]} 24... Bc7 {[%clk 0:01:21.2]} 25. Bxc7 {[%clk 0:01:13.4]}
25... Kxc7 {[%clk 0:01:22.1]} 26. Kf2 {[%clk 0:01:10.9]} 26... e5 {[%clk
0:01:21.8]} 27. Rd1 {[%clk 0:01:07.1]} 27... Raa8 {[%clk 0:01:19.8]} 28. Nb3
{[%clk 0:01:06.3]} 28... Rae8 {[%clk 0:01:17.8]} 29. Re1 {[%clk 0:01:03]} 29...
Re7 {[%clk 0:01:13.1]} 30. Bd3 {[%clk 0:01:02.5]} 30... Rg7 {[%clk 0:01:06.6]}
31. Re2 {[%clk 0:00:57.5]} 31... g4 {[%clk 0:00:58.4]} 32. fxg4 {[%clk 0:00:56]}
32... e4 {[%clk 0:00:57.6]} 33. Bc2 {[%clk 0:00:51.8]} 33... hxg4 {[%clk
0:00:58]} 34. hxg4 {[%clk 0:00:51.7]} 34... Rxg4 {[%clk 0:00:58.1]} 35. Kg1
{[%clk 0:00:46.3]} 35... Rhg8 {[%clk 0:00:55]} 36. Nd2 {[%clk 0:00:38.2]} 36...
f5 {[%clk 0:00:53.8]} 37. Rf2 {[%clk 0:00:37]} 37... f4 {[%clk 0:00:51.7]} 38.
Rxf4 {[%clk 0:00:34.8]} 38... Rxg2+ {[%clk 0:00:49.3]} 39. Kf1 {[%clk
0:00:33.7]} 39... Rxd2 {[%clk 0:00:49.5]} 40. Bb3 {[%clk 0:00:29.8]} 40... Rxb2
{[%clk 0:00:49.1]} 41. Rf7+ {[%clk 0:00:29.2]} 41... Kb8 {[%clk 0:00:48.2]} 0-1

[Event "*** SCC Grand Prix: Titled Tuesday Blitz"]
[Site "Chess.com"]
[Date "2020.06.23"]
[Round "5"]
[White "doctorcristian"]
[Black "EvgenyRomanov"]
[Result "0-1"]
[WhiteElo "2428"]
[BlackElo "2640"]
[TimeControl "180+1"]
[EndTime "10:56:03 PDT"]
[Termination "EvgenyRomanov won on time"]

1. d4 {[%clk 0:03:00.9]} 1... d5 {[%clk 0:02:58.8]} 2. Bf4 {[%clk 0:02:57]} 2...
c5 {[%clk 0:02:57.6]} 3. c3 {[%clk 0:02:54.9]} 3... Nc6 {[%clk 0:02:56.4]} 4. e3
{[%clk 0:02:54.6]} 4... g6 {[%clk 0:02:48.5]} 5. Nd2 {[%clk 0:02:52.1]} 5... Bg7
{[%clk 0:02:46.6]} 6. Ngf3 {[%clk 0:02:51.6]} 6... Nf6 {[%clk 0:02:44.6]} 7. Be2
{[%clk 0:02:49]} 7... O-O {[%clk 0:02:43.7]} 8. O-O {[%clk 0:02:46.1]} 8... Nd7
{[%clk 0:02:42.2]} 9. Bb5 {[%clk 0:02:11.5]} 9... Qb6 {[%clk 0:02:35.1]} 10. Qa4
{[%clk 0:02:04.8]} 10... a6 {[%clk 0:02:19.6]} 11. Bxc6 {[%clk 0:02:03.1]} 11...
bxc6 {[%clk 0:02:19.1]} 12. Qa3 {[%clk 0:01:55.5]} 12... a5 {[%clk 0:02:13.3]}
13. Nb3 {[%clk 0:01:39.9]} 13... c4 {[%clk 0:02:12.3]} 14. Nc5 {[%clk 0:01:39]}
14... Nxc5 {[%clk 0:02:08.8]} 15. dxc5 {[%clk 0:01:32]} 15... Qb7 {[%clk
0:02:07.4]} 16. Rfc1 {[%clk 0:01:23.7]} 16... Bf5 {[%clk 0:02:03.4]} 17. b3
{[%clk 0:01:23.7]} 17... Rfd8 {[%clk 0:01:48]} 18. h3 {[%clk 0:01:15]} 18... Be4
{[%clk 0:01:43.9]} 19. Nd2 {[%clk 0:01:13.3]} 19... Bd3 {[%clk 0:01:43.3]} 20.
Bg3 {[%clk 0:01:02.6]} 20... a4 {[%clk 0:01:36]} 21. b4 {[%clk 0:01:01.9]} 21...
e5 {[%clk 0:01:29.8]} 22. Bh4 {[%clk 0:00:58.3]} 22... f6 {[%clk 0:01:27]} 23.
Re1 {[%clk 0:00:56.8]} 23... g5 {[%clk 0:01:25.9]} 24. Bg3 {[%clk 0:00:56.3]}
24... f5 {[%clk 0:01:26.3]} 25. Qc1 {[%clk 0:00:55.9]} 25... f4 {[%clk
0:01:25.1]} 26. exf4 {[%clk 0:00:38.6]} 26... gxf4 {[%clk 0:01:24]} 27. Bh4
{[%clk 0:00:37.5]} 27... Re8 {[%clk 0:01:23]} 28. Nf3 {[%clk 0:00:37.4]} 28...
Qf7 {[%clk 0:01:22.3]} 29. Qd2 {[%clk 0:00:30.9]} 29... Qh5 {[%clk 0:01:20.7]}
30. Qd1 {[%clk 0:00:14]} 30... e4 {[%clk 0:01:14.1]} 31. Nd4 {[%clk 0:00:03.8]}
31... Qxh4 {[%clk 0:01:08.5]} 32. Nxc6 {[%clk 0:00:03.5]} 32... Bxc3 {[%clk
0:01:05.8]} 33. b5 {[%clk 0:00:04.1]} 33... Kh8 {[%clk 0:01:01.2]} 34. b6 {[%clk
0:00:04]} 34... Rg8 {[%clk 0:00:57.2]} 35. b7 {[%clk 0:00:02.4]} 35... Qxh3
{[%clk 0:00:56.3]} 0-1

[Event "*** SCC Grand Prix: Titled Tuesday Blitz"]
[Site "Chess.com"]
[Date "2020.06.23"]
[Round "5"]
[White "WPWPWP-2015"]
[Black "Nafania1"]
[Result "0-1"]
[WhiteElo "2354"]
[BlackElo "2513"]
[TimeControl "180+1"]
[EndTime "10:56:03 PDT"]
[Termination "Nafania1 won on time"]

1. d4 {[%clk 0:03:00.9]} 1... Nf6 {[%clk 0:02:59.7]} 2. c4 {[%clk 0:02:56.4]}
2... e6 {[%clk 0:02:59.2]} 3. Nf3 {[%clk 0:02:55.3]} 3... Bb4+ {[%clk
0:02:58.7]} 4. Bd2 {[%clk 0:02:53.2]} 4... a5 {[%clk 0:02:58.6]} 5. e3 {[%clk
0:02:51.6]} 5... O-O {[%clk 0:02:56]} 6. Bd3 {[%clk 0:02:48.9]} 6... d5 {[%clk
0:02:56.1]} 7. O-O {[%clk 0:02:44.7]} 7... b6 {[%clk 0:02:56.3]} 8. a3 {[%clk
0:02:37.2]} 8... Be7 {[%clk 0:02:55.3]} 9. Nc3 {[%clk 0:02:33]} 9... Ba6 {[%clk
0:02:48.5]} 10. b3 {[%clk 0:02:32.6]} 10... Nbd7 {[%clk 0:02:45.5]} 11. Qe2
{[%clk 0:02:31.1]} 11... c5 {[%clk 0:02:44.3]} 12. Rfd1 {[%clk 0:02:27.5]} 12...
cxd4 {[%clk 0:02:43]} 13. exd4 {[%clk 0:02:24.8]} 13... Rc8 {[%clk 0:02:40]} 14.
Nb5 {[%clk 0:02:17.7]} 14... dxc4 {[%clk 0:02:38.1]} 15. bxc4 {[%clk 0:02:13.9]}
15... Bxb5 {[%clk 0:02:38.3]} 16. cxb5 {[%clk 0:02:13.9]} 16... Nd5 {[%clk
0:02:38.1]} 17. Ne5 {[%clk 0:02:11.1]} 17... Nxe5 {[%clk 0:02:33.8]} 18. dxe5
{[%clk 0:02:12]} 18... Bc5 {[%clk 0:02:27.6]} 19. Qh5 {[%clk 0:01:53.8]} 19...
f5 {[%clk 0:02:17.4]} 20. Bg5 {[%clk 0:01:25.2]} 20... Qe8 {[%clk 0:02:13.6]}
21. Qh3 {[%clk 0:01:08.2]} 21... Qg6 {[%clk 0:02:11.2]} 22. Bd2 {[%clk
0:01:04.1]} 22... Bd4 {[%clk 0:02:05.2]} 23. Rac1 {[%clk 0:00:47.4]} 23... Bxe5
{[%clk 0:02:04.9]} 24. Rc6 {[%clk 0:00:46.9]} 24... Bd4 {[%clk 0:01:41.6]} 25.
Bc4 {[%clk 0:00:42.8]} 25... Rxc6 {[%clk 0:01:38.9]} 26. bxc6 {[%clk 0:00:42.6]}
26... Qf6 {[%clk 0:01:35.1]} 27. Qf3 {[%clk 0:00:37.9]} 27... Nc7 {[%clk
0:01:28.7]} 28. Bf4 {[%clk 0:00:31]} 28... Be5 {[%clk 0:01:24.5]} 29. Be3 {[%clk
0:00:28.9]} 29... b5 {[%clk 0:01:22.7]} 30. Be2 {[%clk 0:00:21.8]} 30... b4
{[%clk 0:01:21.7]} 31. axb4 {[%clk 0:00:20.9]} 31... axb4 {[%clk 0:01:22.1]} 32.
Bc5 {[%clk 0:00:19.4]} 32... Rb8 {[%clk 0:01:20.3]} 33. Qb3 {[%clk 0:00:17.8]}
33... Bc3 {[%clk 0:01:17.3]} 34. g3 {[%clk 0:00:16.9]} 34... Qe5 {[%clk
0:01:14]} 35. Bd6 {[%clk 0:00:09.6]} 35... Qxe2 {[%clk 0:01:13.7]} 36. Bxc7
{[%clk 0:00:09.7]} 36... Rc8 {[%clk 0:01:12.3]} 37. Ba5 {[%clk 0:00:03.4]} 37...
Rxc6 {[%clk 0:01:11.6]} 38. Rd8+ {[%clk 0:00:01.8]} 38... Kf7 {[%clk 0:01:11.4]}
39. Rd7+ {[%clk 0:00:02]} 39... Kg6 {[%clk 0:01:11.3]} 40. h4 {[%clk 0:00:01.3]}
40... Be1 {[%clk 0:01:06.1]} 0-1

[Event "*** SCC Grand Prix: Titled Tuesday Blitz"]
[Site "Chess.com"]
[Date "2020.06.23"]
[Round "5"]
[White "NodariousBIG"]
[Black "Parhamov"]
[Result "0-1"]
[WhiteElo "2672"]
[BlackElo "3062"]
[TimeControl "180+1"]
[EndTime "10:56:04 PDT"]
[Termination "Parhamov won by checkmate"]

1. e4 {[%clk 0:03:00.9]} 1... c5 {[%clk 0:02:59.8]} 2. c3 {[%clk 0:03:01.2]}
2... d5 {[%clk 0:02:59]} 3. exd5 {[%clk 0:03:01.7]} 3... Qxd5 {[%clk 0:02:59.9]}
4. d4 {[%clk 0:03:02.6]} 4... g6 {[%clk 0:02:59.7]} 5. Nf3 {[%clk 0:03:00.8]}
5... Nc6 {[%clk 0:02:58.4]} 6. Be3 {[%clk 0:03:01]} 6... Nh6 {[%clk 0:02:54.2]}
7. c4 {[%clk 0:02:57.9]} 7... Qd6 {[%clk 0:02:52.3]} 8. d5 {[%clk 0:02:56.3]}
8... Ne5 {[%clk 0:02:37.2]} 9. Nc3 {[%clk 0:02:54.4]} 9... Nxf3+ {[%clk
0:02:33.6]} 10. Qxf3 {[%clk 0:02:43]} 10... Nf5 {[%clk 0:02:33.7]} 11. Bf4
{[%clk 0:02:22.1]} 11... Qb6 {[%clk 0:02:32.5]} 12. Nb5 {[%clk 0:02:07.4]} 12...
Qa5+ {[%clk 0:02:24.7]} 13. Bd2 {[%clk 0:02:06.9]} 13... Qd8 {[%clk 0:02:14.3]}
14. Bc3 {[%clk 0:01:56.6]} 14... f6 {[%clk 0:02:08.1]} 15. Qf4 {[%clk
0:01:48.5]} 15... Bh6 {[%clk 0:02:03.3]} 16. Qc7 {[%clk 0:01:38.6]} 16... O-O
{[%clk 0:02:00.7]} 17. Qxd8 {[%clk 0:01:34.5]} 17... Rxd8 {[%clk 0:02:00.5]} 18.
g4 {[%clk 0:01:33.1]} 18... Nh4 {[%clk 0:01:58.4]} 19. Be2 {[%clk 0:01:33.3]}
19... Bd7 {[%clk 0:01:54.5]} 20. d6 {[%clk 0:01:18]} 20... e5 {[%clk 0:01:52.1]}
21. Nc7 {[%clk 0:01:16.9]} 21... Bc6 {[%clk 0:01:49.5]} 22. O-O {[%clk
0:01:15.7]} 22... Rac8 {[%clk 0:01:49]} 23. Rfd1 {[%clk 0:01:02.7]} 23... Nf3+
{[%clk 0:01:48.6]} 24. Bxf3 {[%clk 0:00:55.2]} 24... Bxf3 {[%clk 0:01:49.5]} 25.
Ne6 {[%clk 0:00:50.4]} 25... Rd7 {[%clk 0:01:42.8]} 26. g5 {[%clk 0:00:48.9]}
26... Kf7 {[%clk 0:01:37]} 27. gxh6 {[%clk 0:00:32.6]} 27... Bxd1 {[%clk
0:01:34.5]} 28. Nc7 {[%clk 0:00:28.6]} 28... Rxd6 {[%clk 0:01:30.7]} 29. Nb5
{[%clk 0:00:27.8]} 29... Rd7 {[%clk 0:01:30.8]} 30. Nxa7 {[%clk 0:00:28.1]}
30... Rcd8 {[%clk 0:01:30.5]} 31. Kg2 {[%clk 0:00:27.7]} 31... Be2 {[%clk
0:01:29]} 32. b3 {[%clk 0:00:27.4]} 32... Rd1 {[%clk 0:01:29]} 33. Rxd1 {[%clk
0:00:27.8]} 33... Rxd1 {[%clk 0:01:29.9]} 34. Nb5 {[%clk 0:00:28.7]} 34... g5
{[%clk 0:01:25.7]} 35. a4 {[%clk 0:00:27.9]} 35... Kg6 {[%clk 0:01:25.8]} 36. a5
{[%clk 0:00:28.2]} 36... Bf1+ {[%clk 0:01:21]} 37. Kf3 {[%clk 0:00:28]} 37...
Rd3+ {[%clk 0:01:21]} 38. Ke4 {[%clk 0:00:27.5]} 38... g4 {[%clk 0:01:10.8]} 39.
b4 {[%clk 0:00:21.9]} 39... cxb4 {[%clk 0:01:02.1]} 40. Bxb4 {[%clk 0:00:22.8]}
40... Rb3 {[%clk 0:01:01.4]} 41. Bf8 {[%clk 0:00:21.4]} 41... Bg2+ {[%clk
0:01:01.6]} 42. f3 {[%clk 0:00:20.1]} 42... Bxf3# {[%clk 0:01:02.1]} 0-1

[Event "*** SCC Grand Prix: Titled Tuesday Blitz"]
[Site "Chess.com"]
[Date "2020.06.23"]
[Round "5"]
[White "Supernotar"]
[Black "Sammed_Shete"]
[Result "1-0"]
[WhiteElo "2798"]
[BlackElo "2566"]
[TimeControl "180+1"]
[EndTime "10:56:05 PDT"]
[Termination "Supernotar won on time"]

1. d4 {[%clk 0:03:00.9]} 1... Nf6 {[%clk 0:02:59.3]} 2. c4 {[%clk 0:02:58.4]}
2... e6 {[%clk 0:02:59.3]} 3. Nf3 {[%clk 0:02:58.3]} 3... d5 {[%clk 0:02:59.3]}
4. e3 {[%clk 0:02:58.3]} 4... Be7 {[%clk 0:02:55.8]} 5. Nbd2 {[%clk 0:02:57.9]}
5... O-O {[%clk 0:02:55]} 6. Bd3 {[%clk 0:02:58.1]} 6... c5 {[%clk 0:02:53.1]}
7. O-O {[%clk 0:02:48.4]} 7... cxd4 {[%clk 0:02:46.3]} 8. Nxd4 {[%clk
0:02:47.1]} 8... Nc6 {[%clk 0:02:46]} 9. Nxc6 {[%clk 0:02:40.9]} 9... bxc6
{[%clk 0:02:45.1]} 10. b3 {[%clk 0:02:41.2]} 10... e5 {[%clk 0:02:39.6]} 11.
cxd5 {[%clk 0:02:35.4]} 11... cxd5 {[%clk 0:02:38.9]} 12. Bb2 {[%clk 0:02:35.7]}
12... Bd6 {[%clk 0:02:38.8]} 13. e4 {[%clk 0:02:21.6]} 13... Bb7 {[%clk
0:02:16.8]} 14. Qe2 {[%clk 0:02:10.5]} 14... Qe7 {[%clk 0:01:59.3]} 15. Rfe1
{[%clk 0:02:05.2]} 15... Rfe8 {[%clk 0:01:28.4]} 16. exd5 {[%clk 0:01:46.8]}
16... Nxd5 {[%clk 0:01:24.3]} 17. g3 {[%clk 0:01:31.4]} 17... a6 {[%clk
0:00:44.6]} 18. Nc4 {[%clk 0:01:28]} 18... Bb4 {[%clk 0:00:40]} 19. Qxe5 {[%clk
0:01:25.1]} 19... Qf8 {[%clk 0:00:33.4]} 20. Qf5 {[%clk 0:01:21.8]} 20... Rxe1+
{[%clk 0:00:20]} 21. Rxe1 {[%clk 0:01:21.1]} 21... g6 {[%clk 0:00:20.9]} 22. Qe5
{[%clk 0:01:18.8]} 22... f6 {[%clk 0:00:21.4]} 23. Qe6+ {[%clk 0:01:17.4]} 23...
Qf7 {[%clk 0:00:21.7]} 24. Qxf7+ {[%clk 0:01:14.2]} 24... Kxf7 {[%clk
0:00:22.6]} 25. Rd1 {[%clk 0:01:13.5]} 25... Re8 {[%clk 0:00:17.4]} 26. Bf1
{[%clk 0:01:10]} 26... Ke6 {[%clk 0:00:13.1]} 27. a3 {[%clk 0:01:07.8]} 27...
Bf8 {[%clk 0:00:11.6]} 28. Na5 {[%clk 0:01:05.7]} 28... Ba8 {[%clk 0:00:09.3]}
29. Bc4 {[%clk 0:01:00.3]} 29... Kd6 {[%clk 0:00:07.5]} 30. Bxf6 {[%clk
0:00:55.9]} 30... Kc5 {[%clk 0:00:05.3]} 31. b4+ {[%clk 0:00:54.2]} 31... Kd6
{[%clk 0:00:04.9]} 32. Bxa6 {[%clk 0:00:51.5]} 32... Ke6 {[%clk 0:00:02.6]} 33.
Bb2 {[%clk 0:00:48.3]} 1-0

[Event "*** SCC Grand Prix: Titled Tuesday Blitz"]
[Site "Chess.com"]
[Date "2020.06.23"]
[Round "5"]
[White "Chigorinetz"]
[Black "Gajuchess"]
[Result "1-0"]
[WhiteElo "2547"]
[BlackElo "2754"]
[TimeControl "180+1"]
[EndTime "10:56:06 PDT"]
[Termination "Chigorinetz won by resignation"]

1. e4 {[%clk 0:02:59.3]} 1... c6 {[%clk 0:02:59.7]} 2. d4 {[%clk 0:02:58.1]}
2... d5 {[%clk 0:02:59.2]} 3. f3 {[%clk 0:02:57.3]} 3... e6 {[%clk 0:02:56.7]}
4. Nc3 {[%clk 0:02:55.4]} 4... Bb4 {[%clk 0:02:56.3]} 5. a3 {[%clk 0:02:51.1]}
5... Bxc3+ {[%clk 0:02:54.8]} 6. bxc3 {[%clk 0:02:52]} 6... Qa5 {[%clk
0:02:48.6]} 7. Bd2 {[%clk 0:02:46.9]} 7... Qa4 {[%clk 0:02:48.6]} 8. Bd3 {[%clk
0:02:38]} 8... b6 {[%clk 0:02:47.3]} 9. Ne2 {[%clk 0:02:36.2]} 9... Ba6 {[%clk
0:02:47.3]} 10. O-O {[%clk 0:02:34.9]} 10... Bxd3 {[%clk 0:02:42.6]} 11. cxd3
{[%clk 0:02:34.2]} 11... Qxd1 {[%clk 0:02:43.5]} 12. Rfxd1 {[%clk 0:02:31.3]}
12... Nd7 {[%clk 0:02:31.3]} 13. a4 {[%clk 0:02:30.4]} 13... a6 {[%clk
0:02:29.4]} 14. c4 {[%clk 0:02:27]} 14... Ne7 {[%clk 0:02:26.5]} 15. Bb4 {[%clk
0:02:11.3]} 15... Nf6 {[%clk 0:01:51.6]} 16. Rdb1 {[%clk 0:02:02.9]} 16... Nc8
{[%clk 0:01:44.7]} 17. g4 {[%clk 0:01:56.7]} 17... h6 {[%clk 0:01:43.6]} 18. h4
{[%clk 0:01:55.8]} 18... Kd7 {[%clk 0:01:41.2]} 19. Kf2 {[%clk 0:01:55.4]} 19...
Kc7 {[%clk 0:01:22.7]} 20. Rh1 {[%clk 0:01:47.4]} 20... g6 {[%clk 0:01:17.3]}
21. Bd2 {[%clk 0:01:42]} 21... h5 {[%clk 0:01:13.8]} 22. Bf4+ {[%clk 0:01:40.6]}
22... Kd7 {[%clk 0:00:23]} 23. Be5 {[%clk 0:01:39.5]} 23... Nxg4+ {[%clk
0:00:18.6]} 24. fxg4 {[%clk 0:01:38.6]} 24... Rh7 {[%clk 0:00:19.1]} 25. gxh5
{[%clk 0:01:24.3]} 25... Rxh5 {[%clk 0:00:20]} 26. Ke3 {[%clk 0:01:16.8]} 26...
Rh7 {[%clk 0:00:19.7]} 27. Rab1 {[%clk 0:01:09.2]} 27... Ke7 {[%clk 0:00:05.4]}
28. Rhf1 {[%clk 0:01:02.2]} 28... Ke8 {[%clk 0:00:04]} 29. Bf6 {[%clk
0:00:59.8]} 29... Kd7 {[%clk 0:00:02.9]} 30. Ng1 {[%clk 0:00:57]} 30... dxc4
{[%clk 0:00:02.1]} 31. dxc4 {[%clk 0:00:56.4]} 31... Nd6 {[%clk 0:00:03]} 32. c5
{[%clk 0:00:49.1]} 32... b5 {[%clk 0:00:03.9]} 1-0